fUSD/lending_fUSD_20240223
["ID","MTS","AMOUNT","RATE_DAILY","PERIOD"]
[314941263,1708691439972,-500.0,0.00027397,2]
[314941264,1708691440034,-712.13,0.00027397,2]
[314941265,1708691440043,-500.0,0.00027397,2]
[314941266,1708691440053,-500.0,0.00027397,2]
[314941267,1708691440062,-500.0,0.00027397,2]
[314941268,1708691440071,-500.0,0.00027397,2]
[314941269,1708691440082,-592.17,0.00027397,2]
[314941270,1708691440091,-500.0,0.00027397,2]
[314941271,1708691440100,-500.0,0.00027397,2]
[314941272,1708691440109,-500.0,0.00027397,2]
[314941273,1708691440119,-500.0,0.00027397,2]
[314941274,1708691440128,-500.0,0.00027397,2]
[314941275,1708691440138,-500.0,0.00027397,2]
[314941276,1708691440147,-500.0,0.00027397,2]
[314941277,1708691440156,-544.8017388,0.00027397,2]
[314941278,1708691440165,-498.68969128,0.00027397,2]
[314941279,1708691440174,-500.0,0.00027397,2]
[314941280,1708691440183,-744.85,0.00027397,2]
[314941281,1708691440193,-500.0,0.00027397,2]
[314941282,1708691440202,-500.0,0.00027397,2]
[314941283,1708691440211,-500.0,0.00027397,2]
[314941284,1708691440220,-500.0,0.00027397,2]
[314941285,1708691440229,-500.0,0.00027397,2]
[314941286,1708691440238,-575.70425598,0.00027397,2]
[314941287,1708691440247,-1000.0,0.00027397,7]
[314941288,1708691440256,-615.67432768,0.00027397,2]
[314941289,1708691440265,-500.0,0.00027397,2]
[314941290,1708691440274,-500.0,0.00027397,2]
[314941291,1708691440283,-525.13845042,0.00027397,2]
[314941292,1708691440292,-500.0,0.00027397,2]
[314941293,1708691440301,-500.0,0.00027397,2]
[314941294,1708691440310,-500.0,0.00027397,2]
[314941295,1708691440319,-572.93980241,0.00027397,2]
[314941296,1708691440329,-500.0,0.00027397,2]
[314941297,1708691440339,-500.0,0.00027397,2]
[314941298,1708691440348,-581.17,0.00027397,2]
[314941299,1708691440357,-578.87401524,0.00027397,2]
[314941300,1708691440366,-500.0,0.00027397,2]
[314941301,1708691440375,-500.0,0.00027397,2]
[314941302,1708691440384,-500.0,0.00027397,2]
[314941303,1708691440394,-500.0,0.00027397,2]
[314941304,1708691440403,-525.99675661,0.00027397,2]
[314941305,1708691440436,-500.0,0.00027397,2]
[314941306,1708691440445,-500.0,0.00027397,2]
[314941307,1708691440454,-500.0,0.00027397,2]
[314941308,1708691440465,-500.0,0.00027397,2]
[314941309,1708691440474,-500.0,0.00027397,2]
[314941310,1708691440483,-1636.85,0.00027397,2]
[314941311,1708691440493,-500.0,0.00027397,2]
[314941312,1708691440503,-542.42,0.00027397,2]
[314941313,1708691440512,-430.10159825,0.00027397,2]
[314941314,1708691440521,-500.0,0.00027397,2]
[314941315,1708691440531,-500.0,0.00027397,2]
[314941316,1708691440539,-500.0,0.00027397,2]
[314941317,1708691440549,-500.0,0.00027397,2]
[314941318,1708691440558,-181.88787882,0.00027397,2]
[314941319,1708691440567,-500.0,0.00027397,2]
[314941320,1708691440578,-500.0,0.00027397,2]
[314941321,1708691440587,-618.55,0.00027397,2]
[314941322,1708691440596,-1133.5,0.00027397,2]
[314941323,1708691440605,-651.3,0.00027397,2]
[314941324,1708691440614,-7441.6,0.00027397,2]
[314941325,1708691440624,-500.0,0.00027397,2]
[314941326,1708691440633,-500.0,0.00027397,2]
[314941327,1708691440642,-500.0,0.00027397,2]
[314941328,1708691440651,-500.0,0.00027397,2]
[314941329,1708691440660,-661.63,0.00027397,2]
[314941330,1708691440670,-645.39268769,0.00027397,2]
[314941331,1708691440680,-500.0,0.00027397,2]
[314941332,1708691440690,-830.11,0.00027397,2]
[314941333,1708691440700,-500.0,0.00027397,2]
[314941334,1708691440709,-966.94,0.00027397,2]
[314941335,1708691440719,-500.0,0.00027397,2]
[314941336,1708691440728,-500.0,0.00027397,2]
[314941337,1708691440738,-500.0,0.00027397,2]
[314941338,1708691440747,-2440.4,0.00027397,2]
[314941339,1708691440757,-500.0,0.00027397,2]
[314941340,1708691440767,-500.0,0.00027397,2]
[314941341,1708691440776,-500.0,0.00027397,2]
[314941342,1708691440786,-500.0,0.00027397,2]
[314941343,1708691440796,-500.0,0.00027397,2]
[314941344,1708691440806,-493.62812638,0.00027397,2]
[314941345,1708691440815,-500.0,0.00027397,2]
[314941346,1708691440827,-500.0,0.00027397,2]
[314941347,1708691440836,-500.0,0.00027397,2]
[314941348,1708691440846,-500.0,0.00027397,2]
[314941349,1708691440856,-543.19801394,0.00027397,2]
[314941350,1708691440865,-1120.79,0.00027397,2]
[314941351,1708691440875,-500.0,0.00027397,2]
[314941352,1708691440884,-1232.0,0.00027397,2]
[314941353,1708691440893,-500.0,0.00027397,2]
[314941354,1708691440903,-500.0,0.00027397,2]
[314941355,1708691440913,-500.0,0.00027397,2]
[314941356,1708691440922,-500.0,0.00027397,2]
[314941357,1708691440931,-435.47486559,0.00027397,2]
[314941358,1708691440941,-1278.68,0.00027397,2]
[314941359,1708691440950,-772.26,0.00027397,2]
[314941360,1708691440959,-500.0,0.00027397,2]
[314941361,1708691440969,-861.43,0.00027397,2]
[314941362,1708691440978,-500.0,0.00027397,2]
[314941363,1708691440988,-500.0,0.00027397,2]
[314941364,1708691440998,-774.07,0.00027397,2]
[314941365,1708691441008,-2030.05,0.00027397,2]
[314941366,1708691441018,-460.47466912,0.00027397,2]
[314941367,1708691441027,-4219.83,0.00027397,2]
[314941368,1708691441036,-500.0,0.00027397,2]
[314941369,1708691441046,-702.02,0.00027397,2]
[314941370,1708691441055,-500.0,0.00027397,2]
[314941371,1708691441064,-190.59835944,0.00027397,2]
[314941372,1708691441076,-500.0,0.00027397,2]
[314941373,1708691441085,-500.0,0.00027397,2]
[314941374,1708691441094,-547.82,0.00027397,2]
[314941375,1708691441103,-579.27,0.00027397,2]
[314941376,1708691441113,-518.07298005,0.00027397,2]
[314941377,1708691441122,-500.0,0.00027397,2]
[314941378,1708691441132,-248.29247555,0.00027397,2]
[314941379,1708691441143,-500.0,0.00027397,2]
[314941380,1708691441153,-1628.05,0.00027397,2]
[314941381,1708691441162,-500.0,0.00027397,2]
[314941382,1708691441172,-500.0,0.00027397,2]
[314941383,1708691441181,-500.0,0.00027397,2]
[314941384,1708691441191,-703.53,0.00027397,2]
[314941385,1708691441200,-92.10407321,0.00027397,2]
[314941386,1708691441230,-407.89592679,0.00027397,2]
[314941387,1708691441239,-181.97658324,0.00027397,2]
[314941388,1708691441251,-898.89341676,0.00027397,2]
[314941389,1708691441262,-570.03041951,0.00027397,2]
[314941390,1708691441272,-500.0,0.00027397,2]
[314941391,1708691441282,-796.04,0.00027397,2]
[314941392,1708691441291,-500.0,0.00027397,2]
[314941393,1708691441301,-282.35866388,0.00027397,2]
[314941394,1708691441311,-500.0,0.00027397,2]
[314941395,1708691441320,-523.73377267,0.00027397,2]
[314941396,1708691441330,-33.26809657,0.00027397,2]
[314941397,1708691441343,-466.73190343,0.00027397,2]
[314941398,1708691441352,-1602.12,0.00027397,2]
[314941399,1708691441361,-582.68,0.00027397,2]
[314941400,1708691441370,-500.0,0.00027397,2]
[314941401,1708691441379,-1861.38,0.00027397,2]
[314941402,1708691441389,-500.0,0.00027397,2]
[314941403,1708691441399,-500.0,0.00027397,2]
[314941404,1708691441408,-500.0,0.00027397,2]
[314941405,1708691441421,-573.42,0.00027397,2]
[314941406,1708691441430,-1205.61,0.00027397,2]
[314941407,1708691441441,-500.0,0.00027397,2]
[314941408,1708691441452,-500.0,0.00027397,2]
[314941409,1708691441462,-500.0,0.00027397,2]
[314941410,1708691441471,-1007.67,0.00027397,2]
[314941411,1708691441480,-607.11,0.00027397,2]
[314941412,1708691441491,-500.0,0.00027397,2]
[314941414,1708691441500,-915.01,0.00027397,2]
[314941417,1708691441510,-500.0,0.00027397,2]
[314941420,1708691441519,-500.0,0.00027397,2]
[314941422,1708691441528,-702.81,0.00027397,2]
[314941424,1708691441537,-647.35809657,0.00027397,2]
[314941426,1708691441553,-1546.90190343,0.00027397,2]
[314941430,1708691441563,-886.41,0.00027397,2]
[314941432,1708691441572,-500.0,0.00027397,2]
[314941435,1708691441584,-500.0,0.00027397,2]
[314941436,1708691441595,-500.0,0.00027397,2]
[314941437,1708691441605,-500.0,0.00027397,2]
[314941438,1708691441615,-500.0,0.00027397,2]
[314941439,1708691441624,-537.45671176,0.00027397,2]
[314941440,1708691441633,-509.21500879,0.00027397,2]
[314941441,1708691441643,-565.48669794,0.00027397,2]
[314941442,1708691441652,-500.0,0.00027397,2]
[314941443,1708691441661,-223.95311485,0.00027397,2]
[314941444,1708691441671,-509.9,0.00027397,2]
[314941445,1708691441680,-500.0,0.00027397,2]
[314941446,1708691441690,-381.2057303,0.00027397,2]
[314941447,1708691441699,-786.77,0.00027397,2]
[314941448,1708691441708,-500.0,0.00027397,2]
[314941449,1708691441719,-500.0,0.00027397,2]
[314941450,1708691441729,-1189.9,0.00027397,2]
[314941451,1708691441740,-500.0,0.00027397,2]
[314941452,1708691441749,-500.0,0.00027397,2]
[314941453,1708691441760,-566.5,0.00027397,2]
[314941454,1708691441769,-500.0,0.00027397,2]
[314941455,1708691441779,-4384.33,0.00027397,2]
[314941456,1708691441789,-500.0,0.00027397,2]
[314941457,1708691441798,-500.0,0.00027397,2]
[314941458,1708691441808,-500.0,0.00027397,2]
[314941459,1708691441817,-1816.86,0.00027397,2]
[314941460,1708691441826,-526.49,0.00027397,2]
[314941461,1708691441836,-1526.02,0.00027397,2]
[314941462,1708691441846,-500.0,0.00027397,2]
[314941463,1708691441855,-500.0,0.00027397,2]
[314941464,1708691441865,-1388.33,0.00027397,2]
[314941465,1708691441874,-2474.45,0.00027397,2]
[314941466,1708691441884,-500.0,0.00027397,2]
[314941467,1708691441893,-500.0,0.00027397,2]
[314941468,1708691441902,-503.46161165,0.00027397,2]
[314941469,1708691441912,-500.0,0.00027397,2]
[314941470,1708691441921,-500.0,0.00027397,2]
[314941471,1708691441930,-500.0,0.00027397,2]
[314941472,1708691441940,-533.86,0.00027397,2]
[314941473,1708691441949,-5329.91,0.00027397,2]
[314941474,1708691441958,-632.58,0.00027397,2]
[314941475,1708691441967,-500.0,0.00027397,2]
[314941476,1708691441976,-388.58617591,0.00027397,2]
[314941477,1708691441985,-500.0,0.00027397,2]
[314941478,1708691441995,-500.0,0.00027397,2]
[314941479,1708691442004,-500.0,0.00027397,2]
[314941480,1708691442013,-500.0,0.00027397,2]
[314941481,1708691442023,-500.0,0.00027397,2]
[314941482,1708691442032,-500.0,0.00027397,2]
[314941483,1708691442042,-503.34,0.00027397,2]
[314941484,1708691442051,-970.3,0.00027397,2]
[314941485,1708691442060,-500.0,0.00027397,2]
[314941486,1708691442069,-661.23,0.00027397,2]
[314941487,1708691442080,-500.0,0.00027397,2]
[314941488,1708691442090,-500.0,0.00027397,2]
[314941489,1708691442099,-1854.49,0.00027397,2]
[314941490,1708691442108,-500.0,0.00027397,2]
[314941491,1708691442117,-500.0,0.00027397,2]
[314941492,1708691442127,-500.0,0.00027397,2]
[314941493,1708691442136,-500.0,0.00027397,2]
[314941494,1708691442145,-500.0,0.00027397,2]
[314941495,1708691442154,-500.0,0.00027397,2]
[314941496,1708691442163,-500.0,0.00027397,2]
[314941497,1708691442172,-500.0,0.00027397,2]
[314941498,1708691442183,-500.0,0.00027397,2]
[314941499,1708691442192,-500.0,0.00027397,2]
[314941500,1708691442202,-557.39,0.00027397,2]
[314941501,1708691442211,-500.0,0.00027397,2]
[314941502,1708691442221,-500.0,0.00027397,2]
[314941503,1708691442230,-972.27,0.00027397,2]
[314941504,1708691442240,-500.0,0.00027397,2]
[314941505,1708691442249,-500.0,0.00027397,2]
[314941506,1708691442258,-873.84,0.00027397,2]
[314941507,1708691442267,-500.0,0.00027397,2]
[314941508,1708691442277,-2756.03,0.00027397,2]
[314941509,1708691442286,-500.0,0.00027397,2]
[314941510,1708691442295,-500.0,0.00027397,2]
[314941511,1708691442304,-1077.76,0.00027397,2]
[314941512,1708691442313,-500.0,0.00027397,2]
[314941513,1708691442322,-500.0,0.00027397,2]
[314941514,1708691442335,-500.0,0.00027397,2]
[314941515,1708691442344,-1405.36,0.00027397,2]
[314941516,1708691442354,-500.0,0.00027397,2]
[314941517,1708691442363,-500.0,0.00027397,2]
[314941518,1708691442372,-500.0,0.00027397,2]
[314941519,1708691442382,-833.0,0.00027397,2]
[314941520,1708691442392,-2513.22,0.00027397,2]
[314941521,1708691442402,-500.0,0.00027397,2]
[314941522,1708691442414,-500.0,0.00027397,2]
[314941523,1708691442424,-500.0,0.00027397,2]
[314941524,1708691442434,-500.0,0.00027397,2]
[314941525,1708691442443,-500.0,0.00027397,2]
[314941526,1708691442452,-857.16,0.00027397,2]
[314941527,1708691442462,-500.0,0.00027397,2]
[314941528,1708691442472,-500.0,0.00027397,2]
[314941529,1708691442482,-1291.5,0.00027397,2]
[314941530,1708691442494,-500.0,0.00027397,2]
[314941531,1708691442503,-500.0,0.00027397,2]
[314941532,1708691442513,-510.65011118,0.00027397,2]
[314941533,1708691442523,-514.89,0.00027397,2]
[314941534,1708691442533,-700.66,0.00027397,2]
[314941535,1708691442542,-500.0,0.00027397,2]
[314941537,1708691442839,-500.0,0.00027397,2]
[314941538,1708691442850,-2031.36,0.00027397,2]
[314941539,1708691442860,-500.0,0.00027397,2]
[314941540,1708691442870,-1009.63,0.00027397,2]
[314941541,1708691442879,-500.0,0.00027397,2]
[314941542,1708691442889,-294.4226857,0.00027397,2]
[314941543,1708691442899,-500.0,0.00027397,2]
[314941544,1708691442908,-516.55,0.00027397,2]
[314941545,1708691442918,-500.0,0.00027397,2]
[314941546,1708691442929,-500.0,0.00027397,2]
[314941547,1708691442939,-571.12740932,0.00027397,2]
[314941548,1708691442948,-1024.27230374,0.00027397,7]
[314941549,1708691442958,-500.0,0.00027397,2]
[314941550,1708691442967,-692.0,0.00027397,2]
[314941551,1708691442976,-500.0,0.00027397,2]
[314941552,1708691442986,-1085.28,0.00027397,2]
[314941553,1708691442995,-500.0,0.00027397,2]
[314941554,1708691443004,-2188.23,0.00027397,2]
[314941555,1708691443013,-482.77692242,0.00027397,2]
[314941556,1708691443023,-500.0,0.00027397,2]
[314941557,1708691443033,-592.24,0.00027397,2]
[314941558,1708691443042,-838.28,0.00027397,2]
[314941559,1708691443052,-500.0,0.00027397,2]
[314941560,1708691443061,-3195.13,0.00027397,2]
[314941561,1708691443071,-3378.46,0.00027397,2]
[314941562,1708691443084,-500.0,0.00027397,2]
[314941563,1708691443093,-500.0,0.00027397,2]
[314941564,1708691443103,-515.07953249,0.00027397,2]
[314941565,1708691443113,-587.56,0.00027397,2]
[314941566,1708691443122,-2460.31,0.00027397,2]
[314941567,1708691443131,-826.6,0.00027397,2]
[314941568,1708691443141,-500.0,0.00027397,2]
[314941569,1708691443150,-151.56383852,0.00027397,2]
[314941570,1708691443160,-500.0,0.00027397,2]
[314941571,1708691443169,-1648.46,0.00027397,2]
[314941572,1708691443178,-500.0,0.00027397,2]
[314941573,1708691443187,-500.0,0.00027397,2]
[314941574,1708691443196,-536.91,0.00027397,2]
[314941575,1708691443205,-500.0,0.00027397,2]
[314941576,1708691443215,-500.0,0.00027397,2]
[314941577,1708691443224,-500.0,0.00027397,2]
[314941578,1708691443233,-3457.82,0.00027397,2]
[314941579,1708691443242,-500.0,0.00027397,2]
[314941580,1708691443251,-500.0,0.00027397,2]
[314941581,1708691443261,-500.0,0.00027397,2]
[314941582,1708691443270,-526.07079838,0.00027397,2]
[314941583,1708691443279,-500.0,0.00027397,2]
[314941584,1708691443288,-661.28,0.00027397,2]
[314941585,1708691443298,-500.0,0.00027397,2]
[314941586,1708691443308,-500.0,0.00027397,2]
[314941587,1708691443317,-500.0,0.00027397,2]
[314941588,1708691443328,-500.0,0.00027397,2]
[314941589,1708691443339,-500.0,0.00027397,2]
[314941590,1708691443348,-816.69,0.00027397,2]
[314941591,1708691443356,-500.0,0.00027397,2]
[314941593,1708691443365,-1895.05,0.00027397,2]
[314941594,1708691443374,-500.0,0.00027397,2]
[314941597,1708691443384,-2058.22,0.00027397,2]
[314941598,1708691443394,-500.0,0.00027397,2]
[314941599,1708691443404,-500.0,0.00027397,2]
[314941600,1708691443414,-500.0,0.00027397,2]
[314941601,1708691443423,-500.0,0.00027397,2]
[314941602,1708691443433,-500.0,0.00027397,2]
[314941603,1708691443443,-500.0,0.00027397,2]
[314941604,1708691443452,-500.0,0.00027397,2]
[314941605,1708691443462,-500.0,0.00027397,2]
[314941606,1708691443472,-3825.2,0.00027397,2]
[314941607,1708691443482,-1955.25,0.00027397,2]
[314941608,1708691443492,-320.27213906,0.00027397,2]
[314941609,1708691443501,-1186.81,0.00027397,2]
[314941611,1708691443510,-12037.0,0.000274,2]
[314941613,1708691443519,-2000.0,0.000274,2]
[314941614,1708691443529,-152.24,0.000274,2]
[314941615,1708691443539,-542.44322807,0.00027434,2]
[314941616,1708691443549,-1422.8095849,0.00027447,2]
[314941617,1708691443558,-5146.52829871,0.00027487,2]
[314941618,1708691443569,-15344.76633829,0.00027487,2]
[314941619,1708691443579,-5833.81543888,0.000275,2]
[314941620,1708691443588,-9630.67055766,0.000275,2]
[314941621,1708691443603,-24486.75593676,0.000275,2]
[314941622,1708691443613,-500.0,0.00027533,2]
[314941623,1708691443625,-213.74406324,0.00027533,2]
[314941624,1708691443643,-286.25593676,0.00027533,2]
[314941625,1708691443652,-198.71,0.00027534,2]
[314941626,1708691443663,-500.0,0.00027534,2]
[314941627,1708691443672,-45.25027713,0.00027534,2]
[314941628,1708691443684,-454.74972287,0.00027534,2]
[314941629,1708691443694,-316.20012926,0.00027534,2]
[314941630,1708691443706,-183.79987074,0.00027534,2]
[314941631,1708691443715,-269.50583035,0.00027534,2]
[314941632,1708691443730,-230.49416965,0.00027534,2]
[314941633,1708691443740,-500.0,0.00027534,2]
[314941634,1708691443750,-500.0,0.00027534,2]
[314941635,1708691443760,-500.0,0.00027534,2]
[314941636,1708691443769,-161.30501416,0.00027534,2]
[314941637,1708691443781,-338.69498584,0.00027534,2]
[314941638,1708691443790,-476.22586517,0.00027534,2]
[314941639,1708691443800,-500.0,0.00027534,2]
[314941640,1708691443809,-500.0,0.00027534,2]
[314941641,1708691443818,-500.0,0.00027534,2]
[314941642,1708691443829,-556.58,0.00027534,2]
[314941643,1708691443839,-500.0,0.00027534,2]
[314941644,1708691443848,-500.0,0.00027534,2]
[314941645,1708691443858,-500.0,0.00027534,2]
[314941646,1708691443867,-526.85,0.00027534,2]
[314941647,1708691443876,-500.0,0.00027534,2]
[314941648,1708691443887,-500.0,0.00027534,2]
[314941649,1708691443896,-680.43,0.00027534,2]
[314941650,1708691443905,-517.9086785,0.00027534,2]
[314941651,1708691443914,-500.0,0.00027534,2]
[314941652,1708691443923,-500.0,0.00027534,2]
[314941653,1708691443935,-500.0,0.00027534,2]
[314941654,1708691443945,-500.0,0.00027534,2]
[314941655,1708691443955,-500.0,0.00027534,2]
[314941656,1708691443964,-500.0,0.00027534,2]
[314941657,1708691443973,-500.0,0.00027534,2]
[314941658,1708691443984,-500.0,0.00027534,2]
[314941659,1708691443993,-500.0,0.00027534,2]
[314941660,1708691444002,-208.52056256,0.00027534,2]
[314941661,1708691444012,-518.64,0.00027534,2]
[314941662,1708691444021,-500.0,0.00027534,2]
[314941663,1708691444031,-500.0,0.00027534,2]
[314941664,1708691444041,-500.0,0.00027534,2]
[314941665,1708691444052,-194.25478379,0.00027534,2]
[314941666,1708691444062,-500.0,0.00027534,2]
[314941667,1708691444072,-500.0,0.00027534,2]
[314941668,1708691444083,-500.0,0.00027534,2]
[314941669,1708691444092,-500.0,0.00027534,2]
[314941670,1708691444101,-500.0,0.00027534,2]
[314941671,1708691444112,-500.0,0.00027534,2]
[314941672,1708691444123,-500.0,0.00027534,2]
[314941673,1708691444133,-500.0,0.00027534,2]
[314941674,1708691444143,-510.19,0.00027534,2]
[314941675,1708691444153,-500.0,0.00027534,2]
[314941676,1708691444162,-500.0,0.00027534,2]
[314941677,1708691444172,-500.0,0.00027534,2]
[314941678,1708691444181,-500.0,0.00027534,2]
[314941679,1708691444191,-500.0,0.00027534,2]
[314941680,1708691444201,-500.0,0.00027534,2]
[314941681,1708691444212,-500.0,0.00027534,2]
[314941682,1708691444223,-500.0,0.00027534,2]
[314941683,1708691444233,-500.0,0.00027534,2]
[314941684,1708691444243,-500.0,0.00027534,2]
[314941685,1708691444254,-500.0,0.00027534,2]
[314941686,1708691444263,-500.0,0.00027534,2]
[314941687,1708691444272,-500.0,0.00027534,2]
[314941688,1708691444281,-500.0,0.00027534,2]
[314941689,1708691444290,-500.0,0.00027534,2]
[314941690,1708691444300,-500.0,0.00027534,2]
[314941691,1708691444309,-500.0,0.00027534,2]
[314941692,1708691444318,-500.0,0.00027534,2]
[314941693,1708691444328,-500.0,0.00027534,2]
[314941694,1708691444338,-500.0,0.00027534,2]
[314941695,1708691444347,-500.46600675,0.00027534,2]
[314941696,1708691444357,-500.0,0.00027534,2]
[314941697,1708691444367,-500.0,0.00027534,2]
[314941698,1708691444376,-500.0,0.00027534,2]
[314941699,1708691444386,-500.0,0.00027534,2]
[314941700,1708691444396,-500.0,0.00027534,2]
[314941701,1708691444405,-500.0,0.00027534,2]
[314941702,1708691444417,-500.0,0.00027534,2]
[314941703,1708691444426,-500.0,0.00027534,2]
[314941704,1708691444435,-500.0,0.00027534,2]
[314941705,1708691444444,-500.0,0.00027534,2]
[314941706,1708691444454,-500.0,0.00027534,2]
[314941707,1708691444464,-500.0,0.00027534,2]
[314941708,1708691444474,-500.0,0.00027534,2]
[314941709,1708691444483,-458.43018226,0.00027534,2]
[314941710,1708691444494,-500.0,0.00027534,2]
[314941711,1708691444503,-500.0,0.00027534,2]
[314941712,1708691444513,-500.0,0.00027534,2]
[314941713,1708691444524,-500.0,0.00027534,2]
[314941714,1708691444535,-500.0,0.00027534,2]
[314941715,1708691444544,-500.0,0.00027534,2]
[314941716,1708691444555,-500.0,0.00027534,2]
[314941717,1708691444565,-500.0,0.00027534,2]
[314941718,1708691444575,-500.0,0.00027534,2]
[314941719,1708691444586,-640.14811687,0.00027534,2]
[314941720,1708691444596,-500.0,0.00027534,2]
[314941721,1708691444607,-500.0,0.00027534,2]
[314941722,1708691444617,-500.0,0.00027534,2]
[314941723,1708691444627,-500.0,0.00027534,2]
[314941724,1708691444636,-484.63655723,0.00027534,2]
[314941725,1708691444645,-208.23803355,0.00027534,2]
[314941726,1708691444655,-150.0,0.00027534,2]
[314941727,1708691444664,-500.0,0.00027534,2]
[314941728,1708691444674,-500.0,0.00027534,2]
[314941729,1708691444685,-500.0,0.00027534,2]
[314941730,1708691444694,-500.0,0.00027534,2]
[314941731,1708691444703,-500.0,0.00027534,2]
[314941732,1708691444713,-500.0,0.00027534,2]
[314941733,1708691444722,-500.0,0.00027534,2]
[314941734,1708691444732,-520.7658484,0.00027534,2]
[314941735,1708691444741,-500.0,0.00027534,2]
[314941736,1708691444751,-866.95,0.00027534,2]
[314941737,1708691444760,-500.0,0.00027534,2]
[314941738,1708691444770,-500.0,0.00027534,2]
[314941739,1708691444779,-500.0,0.00027534,2]
[314941740,1708691444789,-500.0,0.00027534,2]
[314941741,1708691444798,-500.0,0.00027534,2]
[314941742,1708691444808,-712.13,0.00027534,2]
[314941743,1708691444818,-500.0,0.00027534,2]
[314941744,1708691444829,-500.0,0.00027534,2]
[314941745,1708691444838,-500.0,0.00027534,2]
[314941746,1708691444852,-592.17,0.00027534,2]
[314941747,1708691444862,-500.0,0.00027534,2]
[314941748,1708691444872,-500.0,0.00027534,2]
[314941749,1708691444882,-342.21837234,0.00027534,2]
[314941750,1708691444891,-500.0,0.00027534,2]
[314941751,1708691444900,-500.0,0.00027534,2]
[314941752,1708691444910,-500.0,0.00027534,2]
[314941753,1708691444921,-500.0,0.00027534,2]
[314941754,1708691444932,-744.85,0.00027534,2]
[314941755,1708691444942,-500.0,0.00027534,2]
[314941756,1708691444951,-500.0,0.00027534,2]
[314941757,1708691444960,-500.0,0.00027534,2]
[314941758,1708691444969,-1000.0,0.00027534,7]
[314941759,1708691444978,-500.0,0.00027534,2]
[314941760,1708691444987,-500.0,0.00027534,2]
[314941761,1708691444998,-500.0,0.00027534,2]
[314941762,1708691445008,-500.0,0.00027534,2]
[314941763,1708691445018,-500.0,0.00027534,2]
[314941764,1708691445029,-581.17,0.00027534,2]
[314941765,1708691445039,-500.0,0.00027534,2]
[314941766,1708691445049,-500.0,0.00027534,2]
[314941767,1708691445060,-500.0,0.00027534,2]
[314941768,1708691445070,-500.0,0.00027534,2]
[314941769,1708691445079,-200.12012556,0.00027534,2]
[314941770,1708691445089,-500.0,0.00027534,2]
[314941771,1708691445098,-1636.85,0.00027534,2]
[314941772,1708691445107,-500.0,0.00027534,2]
[314941773,1708691445117,-542.42,0.00027534,2]
[314941774,1708691445127,-500.0,0.00027534,2]
[314941775,1708691445138,-500.0,0.00027534,2]
[314941776,1708691445147,-500.0,0.00027534,2]
[314941777,1708691445158,-500.0,0.00027534,2]
[314941778,1708691445168,-618.55,0.00027534,2]
[314941779,1708691445179,-1133.5,0.00027534,2]
[314941780,1708691445189,-651.3,0.00027534,2]
[314941781,1708691445199,-7441.6,0.00027534,2]
[314941782,1708691445266,-500.0,0.00027534,2]